bitfinex/quotes_ETHUSD_20250404
["timestamp","ask_amount","ask_price","bid_price","bid_amount"]
[1743751855405,11.57994067,1812.7,1812.6,5.339]
[1743751856597,11.03553,1812.4,1812.2,6.06]
[1743751856800,5.5177,1812.4,1812.3,5.34]
[1743751857642,11.03466,1812.5,1812.3,5.34]
[1743751857865,5.5173,1812.5,1812.3,5.34]
[1743751858236,11.03475,1812.5,1812.3,5.34]
[1743751859755,5.51754,1812.4,1812.3,5.34]
[1743751860255,5.5173,1812.5,1812.3,5.34]
[1743751860821,6.0673,1812.5,1812.4,0.8031]
[1743751861048,6.0673,1812.5,1812.3,5.34]
[1743751861472,11.5847,1812.5,1812.3,5.34]
[1743751862567,2.51331067,1812.9,1812.3,6.56031]
[1743751862745,2.51331067,1812.9,1812.5,0.8031]
[1743751862945,8.03006067,1812.7,1812.5,0.8031]
[1743751863157,5.51693,1812.6,1812.4,6.11516749]
[1743751863356,5.51724,1812.5,1812.4,6.06]
[1743751863643,5.51754,1812.4,1812.3,6.1431]
[1743751863843,5.51754,1812.4,1812.1,5.61841]
[1743751863844,5.51785,1812.3,1812.1,0.9031]
[1743751864048,8.03116067,1812.3,1812.2,5.341]
[1743751864354,8.58116067,1812.3,1812.2,5.341]
[1743751865005,5.51815,1812.2,1812.1,0.1]
[1743751865498,14.09914067,1812.3,1812.1,0.1]
[1743751865789,5.51815,1812.2,1812.1,0.1]
[1743751867045,5.51815,1812.2,1812.1,5.441]
[1743751868648,8.58116067,1812.3,1812.1,5.441]
[1743751869202,8.03116067,1812.3,1812.1,5.441]
[1743751869786,2.51331067,1812.3,1812.1,5.441]
[1743751870097,5.51768,1812.4,1812.2,0.8031]
[1743751870455,11.03548,1812.4,1812.2,0.8031]
[1743751870687,5.51768,1812.4,1812.2,0.8031]
[1743751871002,8.02974067,1812.8,1812.2,6.06]
[1743751871312,8.03074067,1812.5,1812.2,6.06]
[1743751871463,5.51754,1812.4,1812.2,6.06]
[1743751871667,5.51754,1812.4,1812.3,5.341]
[1743751871861,5.5173,1812.5,1812.3,6.1587]
[1743751872061,5.5173,1812.5,1812.3,6.21387238]
[1743751872271,5.51754,1812.4,1812.3,6.1587]
[1743751872476,11.03471,1812.5,1812.3,6.1587]
[1743751872759,5.5173,1812.5,1812.3,6.1587]
[1743751873278,5.51754,1812.4,1812.3,6.1587]
[1743751873504,5.5173,1812.5,1812.3,6.1587]
[1743751873673,11.03472,1812.5,1812.3,6.1587]
[1743751873875,5.51754,1812.4,1812.3,6.1587]
[1743751874076,5.5173,1812.5,1812.3,6.1587]
[1743751874278,5.5173,1812.5,1812.3,6.21387179]
[1743751874703,5.5173,1812.5,1812.3,6.1587]
[1743751874862,5.51754,1812.4,1812.3,6.1587]
[1743751875802,5.51754,1812.4,1812.3,5.341]
[1743751876818,8.03061067,1812.5,1812.3,5.341]
[1743751876995,13.54800067,1812.5,1812.3,5.341]
[1743751877332,5.51754,1812.4,1812.3,5.341]
[1743751877894,11.03523,1812.4,1812.2,6.06]
[1743751878092,11.03523,1812.4,1812.3,5.341]
[1743751878735,5.51754,1812.4,1812.3,5.341]
[1743751879630,13.54795067,1812.5,1812.3,5.341]
[1743751880253,13.54797067,1812.5,1812.3,5.341]
[1743751880739,2.51331067,1813.1,1812.5,0.8177]
[1743751880938,2.51331067,1813.1,1812.6,6.06]
[1743751881147,5.51651,1812.8,1812.7,5.341]
[1743751881437,11.03309,1812.8,1812.7,5.341]
[1743751881940,12.44114007,1812.8,1812.7,5.341]
[1743751882430,5.51663,1812.7,1812.6,11.401]
[1743751882618,5.51663,1812.7,1812.6,5.341]
[1743751883131,8.02994067,1812.7,1812.6,5.341]
[1743751884034,8.02994067,1812.7,1812.1,5.61832]
[1743751884035,5.51798,1812.3,1812.1,0.8916]
[1743751884239,5.51798,1812.3,1812.2,5.341]
[1743751884742,5.51742,1812.5,1812.3,0.7916]
[1743751886122,5.51698,1812.6,1812.3,0.7916]
[1743751886433,11.03419,1812.6,1812.3,0.84677089]
[1743751886744,5.51698,1812.6,1812.3,6.36460089]
[1743751886948,11.03407,1812.6,1812.3,6.36460089]
[1743751887149,5.51736,1812.5,1812.3,0.84677089]
[1743751887454,5.51754,1812.4,1812.3,0.7916]
[1743751887772,11.03459,1812.5,1812.3,5.341]
[1743751888539,5.51734,1812.5,1812.3,5.341]
[1743751888742,3.5341,1812.7,1812.3,5.341]
[1743751888743,11.03358,1812.7,1812.4,0.7916]
[1743751888942,5.51698,1812.6,1812.4,6.06]
[1743751889537,11.03408,1812.6,1812.4,6.06]
[1743751890052,11.0341,1812.6,1812.4,6.06]
[1743751890251,5.51698,1812.6,1812.4,6.06]
[1743751890451,8.03055067,1812.5,1812.4,6.06]
[1743751890632,8.58055067,1812.5,1812.4,6.06]
[1743751892226,8.03055067,1812.5,1812.4,6.06]
[1743751892555,5.51724,1812.5,1812.4,6.06]
[1743751892960,5.51724,1812.5,1812.4,11.401]
[1743751893965,6.05108,1812.6,1812.4,5.341]
[1743751894260,11.03402,1812.6,1812.4,5.341]
[1743751894558,5.51693,1812.6,1812.4,5.341]
[1743751894751,5.51724,1812.5,1812.4,5.341]
[1743751895550,5.51667,1812.7,1812.4,5.341]
[1743751895755,11.03348,1812.7,1812.4,10.85843]
[1743751895940,5.51699,1812.6,1812.4,5.341]
[1743751896140,11.03416,1812.6,1812.4,5.341]
[1743751896643,11.03417,1812.6,1812.4,5.341]
[1743751897163,11.03408,1812.6,1812.4,5.341]
[1743751897361,11.0341,1812.6,1812.4,5.341]
[1743751897744,5.51699,1812.6,1812.4,5.341]
[1743751898263,5.51724,1812.5,1812.4,5.341]
[1743751901641,5.51782,1812.4,1812.2,0.7542]
[1743751901870,11.03564,1812.4,1812.3,5.34]
[1743751902052,5.51782,1812.4,1812.3,5.34]
[1743751902667,5.51782,1812.4,1812.3,6.0942]
[1743751902840,5.51782,1812.4,1812.3,5.34]
[1743751903984,8.03062067,1812.5,1812.3,5.34]
[1743751904156,5.51731,1812.5,1812.3,5.34]
[1743751904355,11.03474,1812.5,1812.3,5.34]
[1743751904558,5.51731,1812.5,1812.3,5.34]
[1743751904772,11.56881,1812.5,1812.3,5.34]
[1743751904947,5.51754,1812.4,1812.3,5.34]
[1743751905344,11.03485,1812.5,1812.3,5.34]
[1743751905544,5.51754,1812.4,1812.3,5.34]
[1743751908877,5.51815,1812.2,1812.1,0.8542]
[1743751909077,5.51815,1812.2,1812.1,0.1]
[1743751909373,5.51815,1812.2,1812.1,5.44]
[1743751909881,2.51331067,1812.3,1812.1,5.44]
[1743751910758,3.04741067,1812.4,1812.1,5.44]
[1743751911291,2.51331067,1812.4,1812.1,5.44]
[1743751911478,0.55,1812.5,1812.2,0.7542]
[1743751912861,11.56441067,1812.6,1812.2,0.7542]
[1743751913273,5.51331067,1812.6,1812.2,6.27208]
[1743751913673,11.03025067,1812.6,1812.2,0.7542]
[1743751913992,5.51735,1812.5,1812.2,0.7542]
[1743751914198,11.03026067,1812.6,1812.2,0.7542]
[1743751914501,16.54748067,1812.6,1812.2,0.7542]
[1743751914798,5.51725,1812.5,1812.2,0.7542]
[1743751914966,16.54740067,1812.6,1812.2,0.80937566]
[1743751915598,5.51728,1812.5,1812.2,0.80937566]
[1743751915793,11.03026067,1812.6,1812.2,0.80937566]
[1743751915995,16.54734067,1812.6,1812.2,1.98615323]
[1743751916198,11.03026067,1812.6,1812.2,1.98615323]
[1743751916387,11.03026067,1812.6,1812.2,7.50428323]
[1743751916801,5.51331067,1812.6,1812.2,7.50427323]
[1743751916996,3.0,1812.6,1812.3,6.26818732]
[1743751917499,3.0,1812.6,1812.3,0.75042732]
[1743751917699,8.51724,1812.6,1812.3,0.05517174]
[1743751917901,14.03432,1812.6,1812.3,0.05517174]
[1743751918394,5.51725,1812.5,1812.3,0.05517174]
[1743751918875,11.03465,1812.5,1812.3,0.05517174]
[1743751919197,5.51725,1812.5,1812.3,0.05517174]
[1743751919396,11.03464,1812.5,1812.3,0.05517174]
[1743751919696,5.51725,1812.5,1812.3,0.05517174]
[1743751919898,11.03542,1812.4,1812.2,6.8142]
[1743751920307,5.51763,1812.4,1812.2,6.8142]
[1743751920504,5.51763,1812.4,1812.2,0.7542]
[1743751920800,5.51769,1812.4,1812.2,0.7542]
[1743751920998,8.03037067,1812.6,1812.2,6.32741538]
[1743751921211,11.03487,1812.5,1812.2,0.80937538]
[1743751921500,11.03479,1812.5,1812.2,0.7542]
[1743751921680,5.5178,1812.4,1812.2,0.7542]
[1743751921881,5.51785,1812.3,1812.2,0.7542]
[1743751922186,5.51785,1812.3,1812.2,5.34]
[1743751927516,5.51785,1812.3,1812.1,0.1]
[1743751927831,5.51815,1812.2,1812.1,0.1]
[1743751928005,5.51815,1812.2,1812.1,5.44]
[1743751930218,7.95718107,1812.2,1812.1,0.1]
[1743751930387,10.95718107,1812.2,1812.1,0.1]
[1743751934026,11.36970569,1812.2,1812.1,0.1]
[1743751934558,14.67970569,1812.2,1812.1,0.1]
[1743751936819,11.36970569,1812.2,1812.1,0.1]
[1743751937015,10.81970569,1812.2,1812.1,0.1]
[1743751937233,8.51815,1812.2,1812.1,0.1]
[1743751937421,8.9324547,1812.2,1812.1,0.1]
[1743751937742,10.0165547,1812.2,1812.1,0.1]
[1743751938658,5.51998,1811.6,1811.4,5.341]
[1743751938825,8.03380067,1811.5,1811.4,5.341]
[1743751939026,5.52049,1811.5,1811.4,5.341]
[1743751939427,0.55,1811.5,1811.1,0.1]
[1743751939626,13.55411067,1811.5,1811.2,0.813]
[1743751939863,13.55422067,1811.5,1811.2,1.456437]
[1743751940056,13.55422067,1811.5,1811.2,0.813]
[1743751940057,5.52061,1811.4,1811.2,0.813]
[1743751940429,11.04138,1811.4,1811.2,0.813]
[1743751940638,5.52061,1811.4,1811.2,0.813]
[1743751943639,11.04139,1811.4,1811.2,0.813]
[1743751943834,11.04139,1811.4,1811.2,5.341]
[1743751943835,8.03420067,1811.3,1811.2,5.341]
[1743751944271,5.52089,1811.3,1811.2,5.341]
[1743751944465,11.04137,1811.4,1811.1,0.1]
[1743751944768,11.04137,1811.4,1811.1,5.441]
[1743751945072,5.52089,1811.3,1811.1,5.441]
[1743751945462,11.04198,1811.3,1811.1,5.441]
[1743751945670,13.55534067,1811.3,1811.1,5.441]
[1743751945873,5.5212,1811.2,1811.1,5.441]
[1743751946859,8.03420067,1811.3,1811.1,0.1]
[1743751947190,13.55529067,1811.3,1811.1,0.1]
[1743751947358,5.5212,1811.2,1811.1,0.1]
[1743751947560,8.03420067,1811.3,1811.1,0.1]
[1743751947876,5.52062,1811.4,1811.1,0.1]
[1743751948284,11.04139,1811.4,1811.1,0.1]
[1743751948486,5.52113,1811.3,1811.1,0.1]
[1743751948805,8.03444067,1811.3,1811.1,0.1]
[1743751949314,5.5212,1811.2,1811.1,0.1]
[1743751949821,8.03444067,1811.3,1811.1,0.1]
[1743751950014,6.0712,1811.2,1811.1,0.1]
[1743751950690,5.5212,1811.2,1811.1,0.1]
[1743751951423,6.0712,1811.2,1811.1,0.1]
[1743751956140,6.6053,1811.2,1811.1,0.1]
[1743751957539,9.6053,1811.2,1811.1,0.1]
[1743751957840,5.52242,1810.8,1810.7,0.55]
[1743751958007,8.58573067,1810.8,1810.7,0.55]
[1743751958944,6.07242,1810.8,1810.7,0.55]
[1743751960217,12.91652,1810.8,1810.7,0.55]
[1743751960418,15.81528213,1810.8,1810.7,0.55]
[1743751960618,12.50528213,1810.8,1810.7,0.55]
[1743751967550,11.97118213,1810.8,1810.7,0.55]
[1743751969142,12.38242,1810.8,1810.7,0.55]
[1743751969367,9.07242,1810.8,1810.7,0.55]
[1743751974564,5.52242,1810.8,1810.7,0.55]
[1743751975561,6.07242,1810.8,1810.7,0.55]
[1743751981097,5.52242,1810.8,1810.7,0.55]
[1743751986322,5.52242,1810.8,1810.7,1.3697]
[1743751987829,5.52242,1810.8,1810.7,0.55]
[1743751991200,13.55783067,1810.9,1810.7,0.55]
[1743751992295,5.52242,1810.8,1810.7,0.55]
[1743751993942,7.98044207,1810.8,1810.7,0.55]
[1743751996908,11.51454207,1810.8,1810.7,0.55]
[1743751997432,10.98044207,1810.8,1810.7,0.55]
[1743751997739,9.07242,1810.8,1810.7,0.55]
[1743751997947,8.52242,1810.8,1810.7,0.55]
[1743751998250,6.07188,1811.0,1810.8,0.7515]
[1743751998432,5.52188,1811.0,1810.8,0.7515]
[1743751998629,5.52211,1810.9,1810.8,0.7515]
[1743751999225,5.52211,1810.9,1810.8,0.6515]
[1743752002950,11.04382,1811.0,1810.8,0.6515]
[1743752003452,5.52211,1810.9,1810.8,0.6515]
[1743752004249,8.03542067,1810.9,1810.7,1.3015]
[1743752004950,5.52242,1810.8,1810.7,1.3015]
[1743752005154,8.03542067,1810.9,1810.7,1.3015]
[1743752005342,13.55775067,1810.9,1810.7,1.3015]
[1743752005950,3.0,1811.1,1811.0,0.7515]
[1743752006252,11.04274,1811.2,1811.0,0.7515]
[1743752006942,5.5215,1811.1,1811.0,0.7515]
[1743752007145,11.04284,1811.2,1811.0,0.7515]
[1743752007345,11.04272,1811.2,1811.0,0.7515]
[1743752007643,11.04273,1811.2,1811.0,0.7515]
[1743752007857,5.52136,1811.2,1811.0,0.7515]
[1743752008062,5.52095,1811.3,1811.0,1.43265]
[1743752008285,11.04204,1811.3,1811.0,6.95442]
[1743752008453,11.04204,1811.3,1811.0,0.7515]
[1743752008836,5.5212,1811.2,1811.0,0.7515]
[1743752009730,11.04266,1811.2,1811.0,0.7515]
[1743752009933,5.5215,1811.1,1811.0,0.7515]
[1743752010132,5.5215,1811.1,1811.0,5.341]
[1743752010367,6.87710107,1811.1,1811.0,5.341]
[1743752010961,5.52181,1811.0,1810.9,6.06]
[1743752011157,8.03512067,1811.0,1810.9,6.06]
[1743752011340,8.03512067,1811.0,1810.8,5.341]
[1743752011541,5.52211,1810.9,1810.8,5.341]
[1743752012939,5.52242,1810.8,1810.7,5.89]
[1743752013162,8.03573067,1810.8,1810.7,5.89]
[1743752013577,5.52242,1810.8,1810.7,5.89]
[1743752013891,1.35572307,1810.9,1810.7,5.89]
[1743752014097,8.66923067,1811.0,1810.8,0.783]
[1743752014098,5.52182,1811.0,1810.8,0.783]
[1743752014260,6.46089317,1811.0,1810.8,0.783]
[1743752014461,5.52211,1810.9,1810.8,0.783]
[1743752015076,5.52182,1811.0,1810.8,0.783]
[1743752015275,11.04379,1811.0,1810.8,0.783]
[1743752015477,5.52211,1810.9,1810.8,0.783]
[1743752016082,5.52182,1811.0,1810.8,0.783]
[1743752016401,11.04381,1811.0,1810.8,0.783]
[1743752016902,5.52211,1810.9,1810.8,0.783]
[1743752018711,5.52242,1810.8,1810.7,5.89]
[1743752019815,5.52211,1810.9,1810.7,5.89]
[1743752021117,11.04389,1811.0,1810.7,5.89]
[1743752021319,5.52185,1811.0,1810.7,5.89]
[1743752021648,3.0,1811.0,1810.9,0.7816]
[1743752021929,5.52154,1811.1,1810.9,0.7816]
[1743752022632,11.04204,1811.3,1811.0,5.52169]
[1743752022842,11.04204,1811.3,1810.9,6.8416]
[1743752023132,5.52121,1811.2,1810.9,12.41882401]
[1743752023358,11.0426,1811.2,1810.9,13.19510696]
[1743752023562,11.0426,1811.2,1810.9,7.67309696]
[1743752023963,11.04256,1811.2,1810.9,7.67309696]
[1743752024137,5.52121,1811.2,1810.9,7.67309696]
[1743752024335,11.04268,1811.2,1810.9,7.67309696]
[1743752024649,5.52153,1811.1,1810.9,7.67309696]
[1743752025020,11.04269,1811.2,1810.9,7.67309696]
[1743752026067,5.52121,1811.2,1810.9,13.19519696]
[1743752026281,11.04258,1811.2,1810.9,13.19519696]
[1743752026577,11.04258,1811.2,1810.9,7.67309696]
[1743752026915,3.31,1811.1,1810.9,13.19520696]
[1743752027170,3.31,1811.1,1811.0,1.3195207]
[1743752028472,6.31,1811.1,1811.0,1.3195207]
[1743752032046,6.31,1811.1,1810.9,1.61309696]
[1743752032281,6.31,1811.1,1810.9,0.7816]
[1743752032577,8.83181,1811.0,1810.9,0.7816]
[1743752032727,3.0,1810.9,1810.7,1.3316]
[1743752032929,3.0,1810.9,1810.8,5.339]
[1743752034510,6.7226818,1810.9,1810.8,5.339]
[1743752038157,6.7226818,1810.9,1810.7,1.3316]
[1743752038483,6.7226818,1810.9,1810.8,5.338]
[1743752038886,12.2447918,1810.9,1810.8,5.338]
[1743752039085,14.02075285,1810.9,1810.8,5.338]
[1743752039593,12.2447918,1810.9,1810.8,5.338]
[1743752043299,6.7226818,1810.9,1810.8,6.1166]
[1743752044264,0.4126818,1810.9,1810.8,6.1166]
[1743752044463,6.31,1811.1,1810.8,6.1166]
[1743752044796,3.0,1810.8,1810.7,0.55]
[1743752044955,3.0,1810.8,1810.7,5.888]
[1743752045156,6.31,1811.0,1810.7,6.6666]
[1743752045454,11.83186,1811.0,1810.7,6.6666]
[1743752045654,17.35393,1811.0,1810.7,6.6666]
[1743752046068,11.83186,1811.0,1810.7,6.6666]
[1743752046269,17.76580036,1811.0,1810.7,6.6666]
[1743752046468,12.24372036,1811.0,1810.7,6.6666]
[1743752047681,17.76568036,1811.0,1810.7,6.6666]
[1743752047886,12.24372036,1811.0,1810.7,6.6666]
[1743752048053,6.72186036,1811.0,1810.7,7.33878212]
[1743752050085,6.72186036,1811.0,1810.8,0.05521804]
[1743752050295,6.72186036,1811.0,1810.9,0.7989]
[1743752050592,0.41186036,1811.0,1810.9,0.7989]
[1743752050810,0.41186036,1811.0,1810.7,6.56018212]
[1743752050811,3.0,1810.9,1810.7,7.35908212]
[1743752054400,3.31,1810.8,1810.7,7.35908212]
[1743752056206,3.0,1810.9,1810.7,7.35908212]
[1743752057268,3.0,1810.9,1810.7,6.6869]
[1743752059747,9.45741067,1810.9,1810.7,0.55]
[1743752060044,14.97964067,1810.9,1810.8,5.337]
[1743752060431,14.97964067,1810.9,1810.7,5.886]
[1743752060432,8.83242,1810.8,1810.7,5.886]
[1743752060638,10.88262607,1810.8,1810.7,5.886]
[1743752060847,10.88262607,1810.8,1810.7,0.55]
[1743752061056,13.88262607,1810.8,1810.7,0.55]
[1743752061357,14.43262607,1810.8,1810.7,0.55]
[1743752061707,15.06672607,1810.8,1810.7,0.55]
[1743752067129,14.43262607,1810.8,1810.7,0.55]
[1743752067324,12.38242,1810.8,1810.7,0.55]
[1743752067745,12.38242,1810.8,1810.7,5.887]
[1743752070350,2.92310033,1811.0,1810.7,6.6935]
[1743752070541,0.40978966,1811.0,1810.7,6.6935]
[1743752070736,0.40978966,1811.0,1810.9,0.8065]
[1743752070941,2.51331067,1811.2,1810.9,0.8065]
[1743752071139,3.0,1811.1,1810.9,0.8065]
[1743752071461,2.51331067,1811.5,1811.0,0.86171466]
[1743752071659,0.41013552,1811.5,1811.1,10.85733]
[1743752071869,0.41013552,1811.5,1811.2,1.892233]
[1743752072235,0.41013552,1811.5,1811.3,0.8065]
[1743752072434,3.0,1811.6,1811.3,0.8065]
[1743752072635,11.34298067,1811.7,1811.3,0.8065]
[1743752072867,3.0,1811.6,1811.3,0.8065]
[1743752073052,5.51998,1811.6,1811.3,0.8065]
[1743752073451,3.0,1811.5,1811.3,0.8065]
[1743752075176,3.0,1811.5,1811.3,0.86170264]
[1743752075669,3.0,1811.5,1811.3,0.8065]
[1743752075870,3.0,1811.5,1811.3,0.86170264]
[1743752076572,3.0,1811.5,1811.3,6.38259264]
[1743752076762,3.0,1811.7,1811.4,0.63825926]
[1743752076969,3.41382621,1811.7,1811.6,0.8065]
[1743752077293,6.6441,1812.2,1811.6,0.86169896]
[1743752077447,3.14741067,1812.3,1811.7,6.32601]
[1743752077642,2.51331067,1812.3,1811.9,0.8065]
[1743752077843,2.51331067,1812.3,1812.0,5.335]
[1743752078040,8.03116067,1812.3,1812.0,5.335]
[1743752078876,0.41477839,1812.3,1812.0,5.335]
[1743752079075,0.41477839,1812.3,1812.1,0.86087574]
[1743752079444,3.0,1812.5,1812.1,1.71351544]
[1743752080456,8.03044067,1812.6,1812.1,1.71351544]
[1743752080655,8.03044067,1812.6,1812.1,1.6583397]
[1743752081009,2.51331067,1812.6,1812.3,0.8057]
[1743752081279,8.02974067,1812.8,1812.4,5.3881693]
[1743752081476,3.0,1812.7,1812.4,6.00755623]
[1743752081663,8.43429346,1812.8,1812.4,6.00755623]
[1743752081873,8.02974067,1812.8,1812.4,6.00755623]
[1743752082070,3.0,1812.8,1812.4,6.67938693]
[1743752082243,2.51331067,1812.6,1812.5,5.333]
[1743752082448,5.5174,1812.5,1812.1,7.7183397]
[1743752082684,8.03100067,1812.4,1812.2,0.77183397]
[1743752082978,2.51331067,1812.2,1812.0,39.737]
[1743752083183,3.0,1812.5,1812.1,6.1387]
[1743752083385,2.51331067,1812.6,1812.1,10.90652517]
[1743752083573,8.02978067,1812.8,1812.3,0.8057]
[1743752083768,2.61331067,1812.9,1812.5,0.8057]
[1743752083970,2.61331067,1812.9,1812.6,5.38816157]
[1743752084175,3.0,1812.8,1812.6,5.38816157]
[1743752084351,3.0,1812.8,1812.6,5.333]
[1743752084749,8.51648,1812.8,1812.6,5.333]
[1743752085085,8.02994067,1812.7,1812.5,0.8057]
[1743752085261,8.02994067,1812.7,1812.4,6.06]
[1743752085564,8.02994067,1812.7,1812.6,5.332]
[1743752086356,2.51331067,1812.7,1812.6,5.332]
[1743752086550,8.02994067,1812.7,1812.6,5.332]
[1743752087888,5.51724,1812.5,1812.3,0.8057]
[1743752088120,2.51331067,1812.4,1812.2,0.8057]
[1743752088319,8.03097067,1812.4,1812.3,5.331]
[1743752090918,5.51766,1812.4,1812.3,5.331]
[1743752091121,11.0346,1812.5,1812.3,5.331]
[1743752091280,5.51724,1812.5,1812.3,5.94467]
[1743752091684,8.51665,1812.7,1812.4,0.7957]
[1743752091891,5.51724,1812.5,1812.4,0.7957]
[1743752093684,5.51767,1812.4,1812.2,0.7957]
[1743752093883,5.51767,1812.4,1812.3,5.331]
[1743752094293,5.51724,1812.5,1812.3,5.94367]
[1743752094623,5.51754,1812.4,1812.3,5.331]
[1743752096533,8.03085067,1812.4,1812.3,5.331]
[1743752096708,5.51815,1812.2,1812.1,6.06]
[1743752096904,5.51815,1812.2,1812.1,11.39]
[1743752097106,5.41815,1812.2,1812.1,11.39]
[1743752097305,5.41815,1812.2,1812.1,13.96663196]
[1743752097519,5.51798,1812.3,1812.1,13.96663196]
[1743752098031,8.03091067,1812.4,1812.1,13.96663196]
[1743752098244,5.5176,1812.4,1812.3,0.823]
[1743752099742,5.51787,1812.3,1812.1,13.96663196]
[1743752099943,5.51787,1812.3,1812.2,0.632601]
[1743752100330,11.03533,1812.4,1812.2,0.632601]
[1743752100641,5.5176,1812.4,1812.2,0.632601]
[1743752100800,5.51785,1812.3,1812.2,0.632601]
[1743752101246,11.03533,1812.4,1812.2,0.632601]
[1743752101546,5.5176,1812.4,1812.2,0.632601]
[1743752101904,11.03532,1812.4,1812.2,0.632601]
[1743752102136,5.51785,1812.3,1812.2,0.632601]
[1743752102520,5.51815,1812.2,1812.1,6.06]
[1743752102720,5.51815,1812.2,1812.1,11.39]
[1743752103971,8.03146067,1812.2,1812.1,11.39]
[1743752105058,8.03146067,1812.2,1812.1,5.33]
[1743752108865,5.51785,1812.3,1812.2,0.8155]
[1743752109071,5.51785,1812.3,1812.2,1.43005]
[1743752110347,11.0353,1812.4,1812.2,1.43005]
[1743752110657,5.51785,1812.3,1812.2,1.43005]
[1743752110992,5.51785,1812.3,1812.2,7.49005]
[1743752111374,5.51759,1812.4,1812.2,7.49005]
[1743752111574,8.03062067,1812.5,1812.3,0.749005]
[1743752111752,5.51754,1812.4,1812.3,0.749005]
[1743752112259,8.03062067,1812.5,1812.3,0.749005]
[1743752112260,5.51664,1812.7,1812.4,0.8155]
[1743752112589,5.51664,1812.7,1812.5,5.33]
[1743752112590,5.51693,1812.6,1812.5,5.33]
[1743752115848,8.02967067,1812.8,1812.5,11.39]
[1743752116082,8.02967067,1812.8,1812.6,1.139]
[1743752116271,5.51663,1812.7,1812.6,1.139]
[1743752117705,8.02967067,1812.8,1812.6,1.139]
[1743752117874,5.61608,1812.9,1812.6,7.52655306]
[1743752117875,0.1,1812.9,1812.6,7.52655306]
[1743752118073,0.1,1812.9,1812.8,0.8155]
[1743752118308,0.1,1812.9,1812.8,11.63147379]
[1743752118465,0.1,1812.9,1812.8,15.39182]
[1743752119585,0.1,1812.9,1812.8,17.90513067]
[1743752121106,0.1,1812.9,1812.8,15.39182]
[1743752121343,0.1,1812.9,1812.8,16.00637]
[1743752121636,0.1,1812.9,1812.8,16.41356602]
[1743752121818,0.1,1812.9,1812.8,20.00637]
[1743752122391,0.1,1812.9,1812.8,11.49005]
[1743752122596,0.1,1812.9,1812.8,7.49005]
[1743752124127,5.61602,1812.9,1812.8,6.67455]
[1743752124341,5.61602,1812.9,1812.8,12.00155]
[1743752125010,8.12933067,1812.9,1812.4,6.8697]
[1743752125215,5.51693,1812.6,1812.5,5.327]
[1743752125416,5.51693,1812.6,1812.5,11.387]
[1743752126539,13.54687067,1812.7,1812.5,11.387]
[1743752126707,13.54687067,1812.7,1812.6,1.1387]
[1743752127466,8.03006067,1812.7,1812.6,1.1387]
[1743752128211,11.03278,1812.8,1812.6,1.1387]
[1743752128397,5.51663,1812.7,1812.6,1.1387]
[1743752129365,5.51633,1812.8,1812.6,1.1387]
[1743752129518,5.51663,1812.7,1812.6,1.1387]
[1743752129725,5.51693,1812.6,1812.5,11.387]
[1743752131929,8.02994067,1812.7,1812.5,11.387]
[1743752131930,5.51663,1812.7,1812.5,11.387]
[1743752132129,5.51645,1812.8,1812.5,11.387]
[1743752132332,5.51645,1812.8,1812.6,0.05516418]
[1743752132559,5.51645,1812.8,1812.6,1.14421642]
[1743752132753,0.1,1812.9,1812.6,1.19937916]
[1743752132937,5.61606,1812.9,1812.7,0.8097]
[1743752134269,0.1,1812.9,1812.7,0.8097]
[1743752134482,0.1,1812.9,1812.8,0.05515687]
[1743752134704,0.1,1812.9,1812.8,0.74764256]
[1743752135053,5.61602,1812.9,1812.8,0.69248569]
[1743752135454,8.12933067,1812.9,1812.7,6.06]
[1743752135689,5.51632,1812.8,1812.7,6.06]
[1743752140405,5.51693,1812.6,1812.5,11.387]
[1743752140927,5.51645,1812.8,1812.5,11.387]
[1743752141221,5.51693,1812.6,1812.5,11.387]
[1743752142431,5.51693,1812.6,1812.5,12.60667]
[1743752142588,5.5169,1812.7,1812.5,12.60667]
[1743752142589,5.51676,1812.7,1812.5,12.60667]
[1743752143425,5.51693,1812.6,1812.5,12.60667]
[1743752143949,11.03367,1812.7,1812.5,12.60667]
[1743752144445,5.51676,1812.7,1812.5,12.60667]
[1743752144605,5.51676,1812.7,1812.6,1.260667]
[1743752145420,5.51634,1812.8,1812.6,1.260667]
[1743752146144,11.03284,1812.8,1812.6,7.320667]
[1743752146440,5.51663,1812.7,1812.6,7.320667]
[1743752148705,11.03281,1812.8,1812.6,7.320667]
[1743752148915,11.03281,1812.8,1812.7,0.7320667]
[1743752149441,5.51663,1812.7,1812.6,7.320667]
[1743752150041,5.51663,1812.7,1812.6,6.06]
[1743752150210,5.51754,1812.4,1812.3,6.06]
[1743752150542,5.51754,1812.4,1812.3,11.386]
[1743752150743,5.51736,1812.5,1812.3,11.386]
[1743752151046,5.51724,1812.5,1812.3,12.1527]
[1743752151430,5.51724,1812.5,1812.4,1.21527]
[1743752152649,5.51754,1812.4,1812.3,12.1527]
[1743752153223,11.0346,1812.5,1812.3,12.1527]
[1743752153424,11.03463,1812.5,1812.3,12.1527]
[1743752153723,5.51724,1812.5,1812.3,12.1527]
[1743752154125,11.03467,1812.5,1812.3,12.1527]
[1743752154562,5.51754,1812.4,1812.3,12.1527]